Workbook

Sheet Summary
F1: The Paragon Mortgages (2010) Limited originated mortgages transitioned to a term SONIA basis on 1st July 2021. Please see the below link for further details.
F2: libor-mortgages-transition-july-19 (paragonbankinggroup.co.uk)
A3: Paragon Mortgages (No.27) PLC
A5: Information as at the Principal Determination Date | B5: 2020-06-30 | C5: 2020-09-30 | D5: 2020-12-31 | E5: 2021-03-31 | F5: 2021-06-30 | G5: 2021-09-30 | H5: 2021-12-31 | I5: 2022-03-31 | J5: 2022-06-30 | K5: 2022-09-30 | L5: 2022-12-30 | M5: 2023-03-31 | N5: 2023-06-30 | O5: 2023-09-29 | P5: 2023-12-29 | Q5: 2024-03-28 | R5: 2024-06-28
A6: Mortgage Asset Balance | B6: 758459.6066 | C6: 755004.4971 | D6: 750994.8798 | E6: 744486.6645 | F6: 735905.2599 | G6: 728372.7679 | H6: 710743.2578 | I6: 685018.4444 | J6: 672475.028 | K6: 663586.2223 | L6: 654819.8285 | M6: 651050.0772 | N6: 646853.8223 | O6: 640310.8141 | P6: 632031.6957 | Q6: 624755.122 | R6: 619935.0214
A7: Mandatory Further Advance Prefunding Reserve | B7: 739 | C7: 629 | D7: 552 | E7: 473 | F7: 443 | G7: 215 | H7: 0 | I7: 0 | J7: 0 | K7: 0 | L7: 0 | M7: 0 | N7: 0 | O7: 0 | P7: 0 | Q7: 0 | R7: 0
A8: Available Principal Cash | B8: 2 | C8: 2 | D8: 4 | E8: 4 | F8: 0 | G8: 0 | H8: 3 | I8: 3 | J8: 2 | K8: 3 | L8: 4 | M8: 0 | N8: 2 | O8: 3 | P8: 3 | Q8: 6 | R8: 3
A9: Total Assets | B9: =+B6+B7+B8 -> 759200.6066 | C9: 755635.4971 | D9: 751550.8798 | E9: 744963.6645 | F9: 736348.2599 | G9: 728587.7679 | H9: =+H6+H7+H8 -> 710746.2578 | I9: 685021.4444 | J9: =+J6+J7+J8 -> 672477.028 | K9: 663589.2223 | L9: =+L6+L7+L8 -> 654823.8285 | M9: =+M6+M7+M8 -> 651050.0772 | N9: 646855.8223 | O9: 640313.8141 | P9: 632034.6957 | Q9: 624761.122 | R9: 619938.0214
A10: Total Notes (Class A, B, C, D and Z Notes) | B10: =SUM(B11:B15) -> 759201 | C10: 755635 | D10: 751551 | E10: 744964 | F10: 736348 | G10: =SUM(G11:G15) -> 728588 | H10: =SUM(H11:H15) -> 710746 | I10: =SUM(I11:I15)-1 -> 685021 | J10: =SUM(J11:J15) -> 672477 | K10: =SUM(K11:K15) -> 663589 | L10: =SUM(L11:L15)+1 -> 654824 | M10: =SUM(M11:M15) -> 651050 | N10: 646856 | O10: 640314 | P10: 632035 | Q10: 624761 | R10: 619938
A11: Class A Notes | B11: 647030 | C11: 643464 | D11: 639380 | E11: 632793 | F11: 624177 | G11: 616417 | H11: 598575 | I11: 572851 | J11: 560306 | K11: 551418 | L11: 542652 | M11: 538879 | N11: 534685 | O11: 528143 | P11: 519864 | Q11: 512590 | R11: 507767
A12: Class B Notes | B12: 41826 | C12: 41826 | D12: 41826 | E12: 41826 | F12: 41826 | G12: 41826 | H12: 41826 | I12: 41826 | J12: 41826 | K12: 41826 | L12: 41826 | M12: 41826 | N12: 41826 | O12: 41826 | P12: 41826 | Q12: 41826 | R12: 41826
A13: Class C Notes | B13: 22814 | C13: 22814 | D13: 22814 | E13: 22814 | F13: 22814 | G13: 22814 | H13: 22814 | I13: 22814 | J13: 22814 | K13: 22814 | L13: 22814 | M13: 22814 | N13: 22814 | O13: 22814 | P13: 22814 | Q13: 22814 | R13: 22814
A14: Class D Notes | B14: 22814 | C14: 22814 | D14: 22814 | E14: 22814 | F14: 22814 | G14: 22814 | H14: 22814 | I14: 22814 | J14: 22814 | K14: 22814 | L14: 22814 | M14: 22814 | N14: 22814 | O14: 22814 | P14: 22814 | Q14: 22814 | R14: 22814
A15: Class Z Notes | B15: 24717 | C15: 24717 | D15: 24717 | E15: 24717 | F15: 24717 | G15: 24717 | H15: 24717 | I15: 24717 | J15: 24717 | K15: 24717 | L15: 24717 | M15: 24717 | N15: 24717 | O15: 24717 | P15: 24717 | Q15: 24717 | R15: 24717
A16: Class A and B Liquidity Reserve Fund (1.50% of the outstanding Class A and B Notes) | B16: =SUM(648307+41826)*1.5% -> 10351.995 | C16: =SUM(B11+B12)*1.5% -> 10332.84 | D16: 10279.35 | E16: 10218.09 | F16: 10119.285 | G16: 9990.045 | H16: 9873.645 | I16: 9606.015 | J16: =SUM(I11+I12)*1.5% -> 9220.155 | K16: 9031.98 | L16: 8898.66 | M16: 8767.17 | N16: 8710.575 | O16: 8647.665 | P16: 8549.535 | Q16: 8425.35 | R16: 8316.24
A17: General Reserve Fund (1.50% of the outstanding Class C and D Notes) | B17: =SUM(B13:B14)*1.5% -> 684.42 | C17: =SUM(B13:B14)*1.5% -> 684.42 | D17: 684.42 | E17: 684.42 | F17: 684.42 | G17: 684.42 | H17: 684.42 | I17: 684.42 | J17: 684.42 | K17: 684.42 | L17: 684.42 | M17: 684.42 | N17: 684.42 | O17: 684.42 | P17: 684.42 | Q17: 684.42 | R17: 684.42
A18: Class B, C , D and Z Notes as a % of the Total Notes | B18: =SUM(B12:B15)/B10 -> 0.1477487516 | C18: 0.148446009 | D18: 0.1492526788 | E18: 0.1505723767 | F18: 0.1523342224 | G18: 0.1539566943 | H18: =SUM(H12:H15)/H10 -> 0.1578215002 | I18: =SUM(I12:I15)/I10 -> 0.1637482647 | J18: 0.1668027308 | K18: 0.1690368587 | L18: 0.1712994637 | M18: 0.1722924507 | N18: 0.1734095378 | O18: =SUM(O12:O15)/O10 -> 0.1751812392 | P18: 0.1774759309 | Q18: =SUM(Q12:Q15)/Q10 -> 0.179542257 | R18: 0.1809390616
A19: Retained Notes held by Paragon Bank PLC (Class A, B, C, D and Z Notes) | B19: =B10 -> 759201 | C19: 755635 | D19: 751551 | E19: 744964 | F19: 736348 | G19: 728588 | H19: =H10 -> 710746 | I19: 685021 | J19: =J10 -> 672477 | K19: 663589 | L19: =L10 -> 654824 | M19: 651050 | N19: =N10 -> 646856 | O19: 640314 | P19: =P10 -> 632035 | Q19: 624761 | R19: =R10 -> 619938
A20: Lifetime Redemption Rate | B20: 0.0081 | C20: 0.0139 | D20: 0.0164 | E20: 0.0212 | F20: 0.0263 | G20: 0.0288 | H20: 0.0385 | I20: 0.0517 | J20: 0.0539 | K20: 0.0537 | L20: 0.0535 | M20: 0.051 | N20: 0.049 | O20: 0.0484 | P20: 0.0485 | Q20: 0.0483 | R20: 0.0472
A21: Quarterly Redemption Rate | B21: 0.0017 | C21: 0.0047 | D21: 0.0054 | E21: 0.0088 | F21: 0.0116 | G21: 0.0103 | H21: 0.0242 | I21: 0.0362 | J21: 0.0183 | K21: 0.0132 | L21: 0.0132 | M21: 0.0058 | N21: 0.0064 | O21: 0.0101 | P21: 0.0129 | Q21: 0.0115 | R21: 0.0077
A22: PM2010 Lifetime Redemption Rate | B22: 0.0485 | C22: 0.0427 | D22: 0.0329 | E22: 0.0415 | F22: 0.1105 | G22: 0.1235 | H22: 0.1223 | I22: 0.1273 | J22: 0.1204 | K22: 0.1239 | L22: 0.1182 | M22: 0.1091 | N22: 0.1093 | O22: 0.1065 | P22: 0.0998 | Q22: 0.0973 | R22: 0.0963
A23: Paragon Bank Lifetime Redemption Rate | B23: 0.0067 | C23: 0.0128 | D23: 0.016 | E23: 0.0206 | F23: 0.0232 | G23: 0.0253 | H23: 0.0354 | I23: 0.049 | J23: 0.0515 | K23: 0.0512 | L23: 0.0512 | M23: 0.0489 | N23: 0.0469 | O23: 0.0463 | P23: 0.0467 | Q23: 0.0466 | R23: 0.0456
A24: Further Advances released in the quarter | B24: 0 | C24: 0 | D24: 0 | E24: 0 | F24: 0 | G24: 0 | H24: 0 | I24: 0 | J24: 0 | K24: 0 | L24: 0 | M24: 0 | N24: 0 | O24: 0 | P24: 0 | Q24: 0 | R24: 0
A25: Opening PDL Balance | B25: 0 | C25: 0 | D25: 0 | E25: 0 | F25: 0 | G25: 0 | H25: 0 | I25: 0 | J25: 0 | K25: 0 | L25: 0 | M25: 0 | N25: 0 | O25: 0 | P25: 0 | Q25: 0 | R25: 0
A26: Quarterly Losses | B26: =+B99+B130+B161 -> 0 | C26: =+C99+C130+C161 -> 0 | D26: =+D99+D130+D162+D192 -> 1 | E26: =+E99+E130+E162+E192 -> 0 | F26: =+F99+F130+F162+F192 -> -1 | G26: =+G99+G130+G162+G192 -> 0 | H26: =+H99+H130+H161+H192 -> 3 | I26: 2 | J26: 0 | K26: -3 | L26: 0 | M26: 0 | N26: =+N99+N130+N161+N192 -> 1 | O26: 1 | P26: =+P99+P130+P161+P192 -> -1 | Q26: 1 | R26: =+R99+R130+R161+R192 -> 2
A27: Quarterly Loss Rate (annualised) | B27: =1-(1-B26/B6)^4 -> 0 | C27: =1-(1-C26/C6)^4 -> 0 | D27: =1-(1-D26/D6)^4 -> 5.326257366e-06 | E27: =1-(1-E26/E6)^4 -> 0 | F27: =1-(1-F26/F6)^4 -> -5.435493359e-06 | G27: 0 | H27: 1.688362695e-05 | I27: =1-(1-I26/I6)^4 -> 1.167846651e-05 | J27: 0 | K27: -1.808368072e-05 | L27: 0 | M27: 0 | N27: 6.183762986e-06 | O27: =1-(1-O26/O6)^4 -> 6.246951545e-06 | P27: -6.328811546e-06 | Q27: =1-(1-Q26/Q6)^4 -> 6.402493161e-06 | R27: 1.290451581e-05
A28: PDL Replenishment made during the quarter (-ve = recoveries) | B28: 0 | C28: 0 | D28: 1 | E28: 0 | F28: -1 | G28: 0 | H28: 3 | I28: 2 | J28: 0 | K28: -3 | L28: 0 | M28: 0 | N28: 1 | O28: 1 | P28: -1 | Q28: 1 | R28: 2
A29: Outstanding PDL at end of the quarter | B29: =B25+B26-B28 -> 0 | C29: 0 | D29: 0 | E29: 0 | F29: 0 | G29: 0 | H29: =H25+H26-H28 -> 0 | I29: 0 | J29: =J25+J26-J28 -> 0 | K29: 0 | L29: =L25+L26-L28 -> 0 | M29: 0 | N29: =N25+N26-N28 -> 0 | O29: 0 | P29: =P25+P26-P28 -> 0 | Q29: 0 | R29: =R25+R26-R28 -> 0
A30: Spread Trap repayment in the quarter | B30: N/A | C30: N/A | D30: N/A | E30: N/A | F30: N/A | G30: N/A | H30: N/A | I30: N/A | J30: N/A | K30: N/A | L30: N/A | M30: N/A | N30: N/A | O30: N/A | P30: N/A | Q30: N/A | R30: N/A
A31: Spread % (WA Funding Rate less WA Interest Rate) | B31: 0.0227 | C31: 0.0228 | D31: 0.0229 | E31: 0.0229 | F31: 0.0229 | G31: 0.023 | H31: 0.0234 | I31: 0.0201 | J31: 0.0151695257 | K31: 0.007982344572 | L31: 0 | M31: 0 | N31: 0 | O31: 0 | P31: 0 | Q31: 0 | R31: 0
A32: Total Income as a % of the Assets | B32: 0.0051 | C32: 0.0084 | D32: 0.0092 | E32: 0.0093 | F32: 0.0094 | G32: 0.0093 | H32: 0.0098 | I32: 0.011 | J32: 0.0139 | K32: 0.0164 | L32: 0.0196 | M32: 0.0221 | N32: 0.02353429076 | O32: 0.02526528315 | P32: 0.02633551664 | Q32: 0.02596058763 | R32: 0.02566741522
A33: Quarterly surplus income to the Issuer | B33: 885 | C33: 2668 | D33: 3188 | E33: 3420 | F33: 3157 | G33: 2049 | H33: 2254 | I33: 2925 | J33: 3746 | K33: 3122 | L33: 2814 | M33: 2754 | N33: 2655 | O33: 2132 | P33: 3142 | Q33: 2808 | R33: 1543
A34: Surplus Income as a % of the Assets | B34: =+B33/760478 -> 0.001163741752 | C34: =+C33/B9 -> 0.003514222693 | D34: 0.004218965377 | E34: 0.004550590109 | F34: 0.00423779058 | G34: 0.002782650699 | H34: 0.00309365611 | I34: 0.004115392755 | J34: 0.005468441946 | K34: 0.004642537767 | L34: 0.004240575201 | M34: 0.004205711338 | N34: 0.004078027318 | O34: 0.003295943124 | P34: 0.004906968944 | Q34: 0.004442794073 | R34: 0.002469743948
A35: COVID19 Payment holidays as % of mortgages | B35: 0.1558107234 | C35: 0.02558405748 | D35: 0.01038369382 | E35: 0.004718181543 | F35: 0.001099195391 | G35: 0 | H35: 0 | I35: 0 | J35: 0 | K35: 0 | L35: 0 | M35: 0 | N35: 0 | O35: 0 | P35: 0 | Q35: 0 | R35: 0
A36: Losses as a % of the Assets | B36: =+B26/760478 -> 0 | C36: =+C26/B9 -> 0 | D36: 1.323389391e-06 | E36: 0 | F36: -1.342347349e-06 | G36: 0 | H36: 4.117554716e-06 | I36: 2.813943764e-06 | J36: 0 | K36: -4.46111893e-06 | L36: 0 | M36: 0 | N36: 1.535980157e-06 | O36: 1.545939552e-06 | P36: -1.561734228e-06 | Q36: 1.582191621e-06 | R36: 3.201223523e-06
A37: Number of Properties in Possession | B37: =+B97+B128+B159 -> 0 | C37: 0 | D37: 0 | E37: 0 | F37: 0 | G37: 0 | H37: 0 | I37: 0 | J37: 0 | K37: 0 | L37: 0 | M37: 0 | N37: 0 | O37: 0 | P37: 0 | Q37: =+Q97+Q128+Q159+Q190 -> 0 | R37: =+R97+R128+R159+R190 -> 0
A38: Appointment of a Receiver of Rent | B38: 0 | C38: 0 | D38: 0 | E38: 0 | F38: 0 | G38: 0 | H38: 0 | I38: 0 | J38: 0 | K38: 0 | L38: 0 | M38: 3 | N38: 2 | O38: 3 | P38: 2 | Q38: =+Q98+Q129+Q160+Q191 -> 2 | R38: =+R98+R129+R160+R191 -> 3
A39: Average Number of months (Possessions) in Arrears at the Sale Date | B39: 0 | C39: 0 | D39: 0 | E39: 0 | F39: 0 | G39: 0 | H39: 0 | I39: 0 | J39: 0 | K39: 0 | L39: 0 | M39: 0 | N39: 0 | O39: 0 | P39: 0 | Q39: 0 | R39: 0
A40: Average Number of months (RoR) in Arrears at the Sale Date | B40: 0 | C40: 0 | D40: 0 | E40: 0 | F40: 0 | G40: 0 | H40: 0 | I40: 0 | J40: 0 | K40: 0 | L40: 0 | M40: 0 | N40: 0 | O40: 0 | P40: 0 | Q40: 0 | R40: 0
A41: Arrears excluding Receiver of Rent and Possession Cases
A42: Performing Loans | B42: 1 | C42: 1 | D42: 0.9999040145 | E42: 0.9989314449 | F42: 0.9984602977 | G42: 0.9997888444 | H42: 1 | I42: 0.9998262552 | J42: 0.9990473282 | K42: 0.9989314222 | L42: 0.9978616286 | M42: 0.9973869399 | N42: 0.9997271776 | O42: 0.9969189173 | P42: 0.9975519221 | Q42: 0.9980587115 | R42: 0.998375575
A43: >1 to 2 months arrears | B43: 0 | C43: 0 | D43: 0 | E43: 0.0008619697713 | F43: 0.001330707978 | G43: 0 | H43: 0 | I43: 0.0001737448108 | J43: 0 | K43: 0.0001031448781 | L43: 0.001160013743 | M43: 0.001854048568 | N43: 0 | O43: 0.002083412406 | P43: 0.001523836253 | Q43: 0.001669670195 | R43: 0.001183412391
A44: >2 to 3 months arrears | B44: 0 | C44: 0 | D44: 0 | E44: 0.0002065852987 | F44: 0 | G44: 0 | H44: 0 | I44: 0 | J44: 0 | K44: 0 | L44: 0 | M44: 0 | N44: 0 | O44: 8.513214696e-05 | P44: 0.0009242416057 | Q44: 0.0001856682742 | R44: 0
A45: >3 months arrears | B45: 0 | C45: 0 | D45: 9.598547465e-05 | E45: 0 | F45: 0.0002089942937 | G45: 0.0002111556153 | H45: 0 | I45: 0 | J45: 0.0009526718068 | K45: 0.0009654329437 | L45: 0.0009783576674 | M45: 0.0007590115647 | N45: 0.0002728223786 | O45: 0.0009125381779 | P45: 0 | Q45: 8.59500245e-05 | R45: 0.0004410126155
A46: Total | B46: =SUM(B42:B45) -> 1 | C46: 1 | D46: 1 | E46: 1 | F46: 1 | G46: 1 | H46: 1 | I46: 1 | J46: =SUM(J42:J45) -> 1 | K46: 1 | L46: 1 | M46: 1 | N46: 1 | O46: 1 | P46: 1 | Q46: =SUM(Q42:Q45) -> 1 | R46: 1
A47: Total Value of Arrears (£000's) | B47: 0 | C47: 0.3819401381 | D47: 3.728700225 | E47: 7.828549902 | F47: 14.12718111 | G47: 5.760760322 | H47: 2.095520687 | I47: 2.482390121 | J47: 12.73145116 | K47: 19.91459963 | L47: 36.42553071 | M47: 22.76636102 | N47: 23.50068855 | O47: 29.94138912 | P47: 34.54097113 | Q47: 33.89718021 | R47: 38.34504109
A48: Total Value of Arrears as a % of the Notes (£760,478,000) | B48: =+B47/760478 -> 0 | C48: 5.022369327e-07 | D48: 4.903100715e-06 | E48: 1.029424901e-05 | F48: 1.857671242e-05 | G48: 7.5751834e-06 | H48: =+H47/760478 -> 2.755530978e-06 | I48: 3.26424975e-06 | J48: =+J47/760478 -> 1.674137997e-05 | K48: 2.618695035e-05 | L48: =+L47/760478 -> 4.789820443e-05 | M48: 2.993690944e-05 | N48: =+N47/760478 -> 3.090252256e-05 | O48: 3.937180183e-05 | P48: =+P47/760478 -> 4.542007938e-05 | Q48: 4.457351852e-05 | R48: =+R47/760478 -> 5.042228847e-05
A50: Underlying Assets | B50: =+B5 -> 2020-06-30 | C50: 2020-09-30 | D50: 2020-12-31 | E50: 2021-03-31 | F50: 2021-06-30 | G50: 2021-09-30 | H50: =+H5 -> 2021-12-31 | I50: 2022-03-31 | J50: =+J5 -> 2022-06-30 | K50: 2022-09-30 | L50: =+L5 -> 2022-12-30 | M50: 2023-03-31 | N50: =+N5 -> 2023-06-30 | O50: 2023-09-29 | P50: =+P5 -> 2023-12-29 | Q50: 2024-03-28 | R50: =+R5 -> 2024-06-28
A51: Weighted Average LTV | B51: 0.7334227471 | C51: 0.7338487716 | D51: 0.7340266259 | E51: 0.7343307265 | F51: 0.7345136826 | G51: 0.7342330103 | H51: 0.7345316503 | I51: 0.7344773946 | J51: 0.7336360648 | K51: 0.7329419643 | L51: 0.7330578826 | M51: 0.7326984902 | N51: 0.7322617188 | O51: 0.7317433144 | P51: 0.7325386579 | Q51: 0.7327483348 | R51: 0.7324749294
A52: Weighted Average Nationwide Indexed LTV | B52: 0.7243979444 | C52: 0.6977693044 | D52: 0.6831098017 | E52: 0.6782940742 | F52: 0.6467672965 | G52: 0.637329936 | H52: 0.621604934 | I52: 0.6055596277 | J52: 0.5826910603 | K52: 0.5778628994 | L52: 0.5932009422 | M52: 0.6104903251 | N52: 0.6033216735 | O52: 0.6027217724 | P52: 0.6121359008 | Q52: 0.6095579312 | R52: 0.6094633906
A53: % of Fixed Rate Mortgages (reverting to Term SONIA plus a variable margin) | B53: 0 | C53: 0 | D53: 0 | E53: 0 | F53: 0 | G53: 0 | H53: 0 | I53: 0 | J53: 0 | K53: 0 | L53: 0 | M53: 0 | N53: 0 | O53: 0 | P53: 0 | Q53: 0 | R53: 0
A54: % of Fixed Rate Mortgages (reverting to SVR) | B54: 1 | C54: 1 | D54: 1 | E54: 1 | F54: 0.9953748612 | G54: 0.9884586982 | H54: 0.956014596 | I54: 0.955329873 | J54: 0.9679772794 | K54: 0.9812689807 | L54: 0.9878398712 | M54: 0.9893699893 | N54: 0.9889631884 | O54: 0.9814548943 | P54: 0.9531715673 | Q54: 0.9388437142 | R54: 0.943102772
A55: % of Term SONIA Linked Mortgages (reverting to Term SONIA plus a variable margin) | B55: 0 | C55: 0 | D55: 0 | E55: 0 | F55: 0 | G55: 0 | H55: 0 | I55: 0 | J55: 0 | K55: 0 | L55: 0 | M55: 0 | N55: 0 | O55: 0 | P55: 0 | Q55: 0 | R55: 0
A56: % of Term SONIA Linked Mortgages plus a Variable Margin | B56: 0 | C56: 0 | D56: 0 | E56: 0 | F56: 0 | G56: 0 | H56: 0 | I56: 0 | J56: 0 | K56: 0 | L56: 0 | M56: 0 | N56: 0 | O56: 0 | P56: 0 | Q56: 0 | R56: 0
A57: % of Non Reversionary Term SONIA Linked Mortgages | B57: 0 | C57: 0 | D57: 0 | E57: 0 | F57: 0 | G57: 0 | H57: 0 | I57: 0 | J57: 0 | K57: 0 | L57: 0 | M57: 0 | N57: 0 | O57: 0 | P57: 0 | Q57: 0 | R57: 0
A58: % of SVR Mortgages | B58: 0 | C58: 0 | D58: 0 | E58: 0 | F58: 0.004625138772 | G58: 0.01154130176 | H58: 0.043985404 | I58: 0.04467012703 | J58: 0.03202272061 | K58: 0.01873101935 | L58: 0.01216012884 | M58: 0.01063001067 | N58: 0.01103681155 | O58: 0.01854510569 | P58: 0.04682843274 | Q58: 0.06115628582 | R58: 0.05689722804
A59: Weighted Average Loan Size | B59: 186170.7429 | C59: 185870.1371 | D59: 185660.0445 | E59: 185287.8707 | F59: 184993.7808 | G59: 185007.0531 | H59: 185766.6644 | I59: 186959.1824 | J59: 187632.5413 | K59: 187718.8748 | L59: 188437.3607 | M59: 188491.6263 | N59: 188752.2096 | O59: 188770.8768 | P59: 188778.8816 | Q59: 188976.141 | R59: 189177.608
A60: Weighted Average Interest Rate | B60: 0.0357497842 | C60: 0.03575829162 | D60: 0.03576037104 | E60: 0.03576281122 | F60: 0.0358265506 | G60: 0.03596962851 | H60: 0.03672224647 | I60: 0.03711947085 | J60: 0.03707829486 | K60: 0.03699996642 | L60: 0.03697196989 | M60: 0.03698146556 | N60: 0.03705031633 | O60: 0.03766414051 | P60: 0.03964801136 | Q60: 0.04069067599 | R60: 0.0406223121
A61: Weighted Average Maturity Date (years) | B61: 21.01748821 | C61: 20.77670611 | D61: 20.53973806 | E61: 20.28864308 | F61: 20.07247042 | G61: 19.85132854 | H61: 19.58809448 | I61: 19.29581371 | J61: 19.04333047 | K61: 18.80443584 | L61: 18.54071676 | M61: 18.28820157 | N61: 18.04844145 | O61: 17.80249262 | P61: 17.58664833 | Q61: 17.37414789 | R61: 17.17385755
A62: Weighted Average Seasoning (months) | B62: 9.938990474 | C62: 12.95243002 | D62: 15.98327893 | E62: 18.91957301 | F62: 21.73821953 | G62: 24.68647111 | H62: 27.68938265 | I62: 30.66731308 | J62: 33.66782881 | K62: 36.65009374 | L62: 39.6745178 | M62: 42.63897438 | N62: 45.59361789 | O62: 48.59623034 | P62: 51.63080303 | Q62: 54.61360642 | R62: 57.58738882
A63: % of Interest Only Mortgages (optional switching to repayment) | B63: 0.946159914 | C63: 0.9464708762 | D63: 0.9457684053 | E63: 0.9447677214 | F63: 0.9445182578 | G63: 0.9443510503 | H63: 0.9436146302 | I63: 0.9438923986 | J63: 0.9450700298 | K63: 0.9456595389 | L63: 0.9462068564 | M63: 0.9467105193 | N63: 0.9469943149 | O63: 0.9473401132 | P63: 0.9472875773 | Q63: 0.9482360247 | R63: 0.9489015517
A64: % of Repayment Mortgages | B64: 0.05384008603 | C64: 0.05352912382 | D64: 0.05423159469 | E64: 0.05523227861 | F64: 0.05548174217 | G64: 0.05564894975 | H64: 0.05638536983 | I64: 0.0561076014 | J64: 0.05492997021 | K64: 0.05434046109 | L64: 0.05379314359 | M64: 0.05328948068 | N64: 0.05300568513 | O64: 0.05265988681 | P64: 0.05271242266 | Q64: 0.05176397534 | R64: 0.05109844825
A65: % of Mortgages in London | B65: 0.1524584253 | C65: 0.1505856969 | D65: 0.15072095 | E65: 0.1503721736 | F65: 0.1495575284 | G65: 0.1508796286 | H65: 0.1518395637 | I65: 0.15588707 | J65: 0.1572723142 | K65: 0.15735152 | L65: 0.1587929981 | M65: 0.1596700502 | N65: 0.1606949366 | O65: 0.1610417804 | P65: 0.1626618101 | Q65: 0.1628295549 | R65: 0.1631441415
A66: % of Mortgages in the South East | B66: 0.3402696916 | C66: 0.341387764 | D66: 0.3404250213 | E66: 0.3403561248 | F66: 0.3426477128 | G66: 0.3437400957 | H66: 0.3459647098 | I66: 0.3487467696 | J66: 0.3501756382 | K66: 0.3508684028 | L66: 0.3514903122 | M66: 0.3529680576 | N66: 0.3534845403 | O66: 0.3545489897 | P66: 0.3547322125 | Q66: 0.3569581463 | R66: 0.3566502043
A67: % of Owner Occupied Mortgages | B67: 0 | C67: 0 | D67: 0 | E67: 0 | F67: 0 | G67: 0 | H67: 0 | I67: 0 | J67: 0 | K67: 0 | L67: 0 | M67: 0 | N67: 0 | O67: 0 | P67: 0 | Q67: 0 | R67: 0
A68: % of Investment Home Loans - Professional Landlords | B68: 0.6866519405 | C68: 0.6862114667 | D68: 0.6865914791 | E68: 0.6869090411 | F68: 0.6898986816 | G68: 0.6915257422 | H68: 0.6946541209 | I68: 0.6960924123 | J68: 0.6976097406 | K68: 0.6992732636 | L68: 0.7006959428 | M68: 0.7011613181 | N68: 0.7018313376 | O68: 0.7011961592 | P68: 0.7026306934 | Q68: 0.7032999005 | R68: 0.7042046508
A69: % of Investment Home Loans - Emerging Professional Landlords | B69: 0.3133480595 | C69: 0.3137885333 | D69: 0.3134085209 | E69: 0.3130909589 | F69: 0.3101013184 | G69: 0.3084742578 | H69: 0.3053458791 | I69: 0.3039075877 | J69: 0.3023902594 | K69: 0.3007267364 | L69: 0.2993040572 | M69: 0.2988386819 | N69: 0.2981686624 | O69: 0.2988038408 | P69: 0.2973693066 | Q69: 0.2967000995 | R69: 0.2957953492
A70: Weighted Average Interest Coverage Ratio (calculated at the origination date) | B70: 1.835966126 | C70: 1.837544094 | D70: 1.838265991 | E70: 1.840438697 | F70: 1.84349407 | G70: 1.844702509 | H70: 1.849759417 | I70: 1.857084286 | J70: 1.85762246 | K70: 1.861947679 | L70: 1.863842114 | M70: 1.862563607 | N70: 1.861781841 | O70: 1.862938097 | P70: 1.861447459 | Q70: 1.862683761 | R70: 1.864122998
A71: % of PM2010 Originated Assets (Professional) | B71: 0.02007707643 | C71: 0.0198345243 | D71: 0.0199305906 | E71: 0.01989691283 | F71: 0.01880503382 | G71: 0.01846459066 | H71: 0.01832590822 | I71: 0.01887137816 | J71: 0.01921229011 | K71: 0.01839421373 | L71: 0.01828631081 | M71: 0.01838016581 | N71: 0.01823398323 | O71: 0.01822695951 | P71: 0.01845672853 | Q71: 0.0183667892 | R71: 0.01840690438
A72: % of PM2010 Originated Assets (Emerging Professional) | B72: 0.0160245213 | C72: 0.01608559236 | D72: 0.01604679763 | E72: 0.01578678065 | F72: 0.0138328218 | G72: 0.01287840588 | H72: 0.01282929115 | I72: 0.01206791961 | J72: 0.01178581229 | K72: 0.01172339539 | L72: 0.01176297492 | M72: 0.01181315462 | N72: 0.01127523503 | O72: 0.01104269329 | P72: 0.01118410586 | Q72: 0.01118344848 | R72: 0.01073755571
A73: % of Paragon Bank Originated Assets (Professional) | B73: 0.6665748641 | C73: 0.6663769424 | D73: 0.6666608885 | E73: 0.6670121283 | F73: 0.6710936478 | G73: 0.6730611515 | H73: 0.6763282127 | I73: 0.6772210341 | J73: 0.6783974505 | K73: 0.6808790499 | L73: 0.682409632 | M73: 0.6827811523 | N73: 0.6835973543 | O73: 0.6829691997 | P73: 0.6841739649 | Q73: 0.6849331113 | R73: 0.6857977464
A74: % of Paragon Bank Originated Assets (Emerging Professional) | B74: 0.2973235382 | C74: 0.2977029409 | D74: 0.2973617233 | E74: 0.2973041782 | F74: 0.2962684966 | G74: 0.295595852 | H74: 0.2925165879 | I74: 0.2918396681 | J74: 0.2906044471 | K74: 0.289003341 | L74: 0.2875410823 | M74: 0.2870255272 | N74: 0.2868934274 | O74: 0.2877611475 | P74: 0.2861852007 | Q74: 0.2855166511 | R74: 0.2850577935
A76: Underlying Assets - Paragon Mortgages 2010 Originated Assets (Professional) | B76: =+B5 -> 2020-06-30 | C76: 2020-09-30 | D76: 2020-12-31 | E76: 2021-03-31 | F76: 2021-06-30 | G76: 2021-09-30 | H76: =+H5 -> 2021-12-31 | I76: 2022-03-31 | J76: =+J5 -> 2022-06-30 | K76: 2022-09-30 | L76: =+L5 -> 2022-12-30 | M76: 2023-03-31 | N76: =+N5 -> 2023-06-30 | O76: 2023-09-29 | P76: =+P5 -> 2023-12-29 | Q76: 2024-03-28 | R76: =+R5 -> 2024-06-28
A77: Weighted Average LTV | B77: 0.7210036362 | C77: 0.7198809319 | D77: 0.7197191964 | E77: 0.7189319585 | F77: 0.7198941642 | G77: 0.7182034732 | H77: 0.7166245973 | I77: 0.7161912057 | J77: 0.7160181877 | K77: 0.716340861 | L77: 0.7148508512 | M77: 0.7146892363 | N77: 0.7151771404 | O77: 0.7184594836 | P77: 0.7184408511 | Q77: 0.7143359172 | R77: 0.7150650969
A78: Weighted Average Nationwide Indexed LTV | B78: 0.6337354231 | C78: 0.6080311314 | D78: 0.5963145979 | E78: 0.5917378335 | F78: 0.5637643933 | G78: 0.5559471231 | H78: 0.5399454969 | I78: 0.5267371532 | J78: 0.5064685692 | K78: 0.5006023988 | L78: 0.5133310955 | M78: 0.528830881 | N78: 0.5244639739 | O78: 0.5271120978 | P78: 0.5346092181 | Q78: 0.5299487177 | R78: 0.5306171249
A79: % of Fixed Rate Mortgages (reverting to Term SONIA plus a variable margin) | B79: 0 | C79: 0 | D79: 0 | E79: 0 | F79: 0 | G79: 0 | H79: 0 | I79: 0 | J79: 0 | K79: 0 | L79: 0 | M79: 0 | N79: 0 | O79: 0 | P79: 0 | Q79: 0 | R79: 0
A80: % of Fixed Rate Mortgages (reverting to SVR) | B80: 1 | C80: 1 | D80: 1 | E80: 1 | F80: 0.9158058171 | G80: 0.9602964738 | H80: 0.8669904975 | I80: 0.8989331592 | J80: 0.8991400657 | K80: 0.9816354822 | L80: 1 | M80: 1 | N80: 0.9786819625 | O80: 0.8155829041 | P80: 0.8074946238 | Q80: 0.7896732531 | R80: 0.840363228
A81: % of Term SONIA Linked Mortgages (reverting to Term SONIA plus a variable margin) | B81: 0 | C81: 0 | D81: 0 | E81: 0 | F81: 0 | G81: 0 | H81: 0 | I81: 0 | J81: 0 | K81: 0 | L81: 0 | M81: 0 | N81: 0 | O81: 0 | P81: 0 | Q81: 0 | R81: 0
A82: % of Term SONIA Linked Mortgages plus a Variable Margin | B82: 0 | C82: 0 | D82: 0 | E82: 0 | F82: 0 | G82: 0 | H82: 0 | I82: 0 | J82: 0 | K82: 0 | L82: 0 | M82: 0 | N82: 0 | O82: 0 | P82: 0 | Q82: 0 | R82: 0
A83: % of Non Reversionary Term SONIA Linked Mortgages | B83: 0 | C83: 0 | D83: 0 | E83: 0 | F83: 0 | G83: 0 | H83: 0 | I83: 0 | J83: 0 | K83: 0 | L83: 0 | M83: 0 | N83: 0 | O83: 0 | P83: 0 | Q83: 0 | R83: 0
A84: % of SVR Mortgages | B84: 0 | C84: 0 | D84: 0 | E84: 0 | F84: 0.08419418286 | G84: 0.03970352622 | H84: 0.1330095025 | I84: 0.1010668408 | J84: 0.1008599343 | K84: 0.01836451779 | L84: 0 | M84: 0 | N84: 0.02131803745 | O84: 0.1844170959 | P84: 0.1925053762 | Q84: 0.2103267469 | R84: 0.159636772
A85: Weighted Average Loan Size | B85: 156986.0978 | C85: 157633.2109 | D85: 157555.4894 | E85: 157584.9603 | F85: 160915.3872 | G85: 162037.4098 | H85: 162812.6964 | I85: 163635.9761 | J85: 163541.5865 | K85: 162748.624 | L85: 164030.67 | M85: 163923.4023 | N85: 166122.8415 | O85: 166727.4183 | P85: 166646.249 | Q85: 166300.6613 | R85: 167810.0685
A86: Weighted Average Interest Rate | B86: 0.03809777212 | C86: 0.03808338148 | D86: 0.03808376175 | E86: 0.03807503606 | F86: 0.03887359505 | G86: 0.03803853614 | H86: 0.0386451451 | I86: 0.0386974383 | J86: 0.03917945723 | K86: 0.03813244412 | L86: 0.03770812903 | M86: 0.03770488074 | N86: 0.04113899024 | O86: 0.04763942068 | P86: 0.04883949847 | Q86: 0.05028344036 | R86: 0.05160671858
A87: Weighted Average Maturity Date (years) | B87: 15.39270459 | C87: 15.06638647 | D87: 14.81683207 | E87: 14.52982104 | F87: 14.61128782 | G87: 14.27085765 | H87: 14.0867893 | I87: 13.84031264 | J87: 13.5908818 | K87: 13.46773705 | L87: 13.13812443 | M87: 12.88885873 | N87: 12.62891603 | O87: 12.38830788 | P87: 12.13764724 | Q87: 11.91986603 | R87: 11.70823017
A88: Weighted Average Seasoning (months) | B88: 64.29651122 | C88: 67.40222278 | D88: 70.42513283 | E88: 73.43220128 | F88: 76.2821033 | G88: 79.39631834 | H88: 82.335863 | I88: 85.33455362 | J88: 88.32452513 | K88: 91.56977776 | L88: 94.66929852 | M88: 97.6267279 | N88: 100.6832589 | O88: 103.764534 | P88: 106.7879133 | Q88: 109.7677184 | R88: 112.7747336
A89: % of Interest Only Mortgages (optional switching to repayment) | B89: 0.9620661111 | C89: 0.9619103583 | D89: 0.9623817921 | E89: 0.962492673 | F89: 0.9603909611 | G89: 0.9597935893 | H89: 0.9590522129 | I89: 0.9593187034 | J89: 0.9598723836 | K89: 0.9581445498 | L89: 0.957980972 | M89: 0.9586078525 | N89: 0.9624608389 | O89: 0.9626293645 | P89: 0.9632592185 | Q89: 0.9633174317 | R89: 0.963792279
A90: % of Repayment Mortgages | B90: 0.03793388891 | C90: 0.03808964171 | D90: 0.03761820792 | E90: 0.03750732701 | F90: 0.03960903893 | G90: 0.04020641073 | H90: 0.04094778708 | I90: 0.04068129656 | J90: 0.04012761642 | K90: 0.04185545024 | L90: 0.042019028 | M90: 0.04139214748 | N90: 0.03753916111 | O90: 0.03737063547 | P90: 0.03674078154 | Q90: 0.03668256827 | R90: 0.03620772103
A91: % of Mortgages in London | B91: 0.2239182465 | C91: 0.2153449037 | D91: 0.2154511326 | E91: 0.2177024444 | F91: 0.2336831787 | G91: 0.2404529407 | H91: 0.2329469835 | I91: 0.2347088493 | J91: 0.2348443138 | K91: 0.210477816 | L91: 0.2145541891 | M91: 0.2146945884 | N91: 0.2197188085 | O91: 0.2226810629 | P91: 0.2227895253 | Q91: 0.2264880455 | R91: 0.2277515931
A92: % of Mortgages in the South East | B92: 0.3634918236 | C92: 0.369620668 | D92: 0.3698030006 | E92: 0.3637218527 | F92: 0.3802870645 | G92: 0.3693362834 | H92: 0.3752270852 | I92: 0.378065069 | J92: 0.3782832729 | K92: 0.4006291125 | L92: 0.4083881904 | M92: 0.4086554302 | N92: 0.4146039104 | O92: 0.420876399 | P92: 0.4210813976 | Q92: 0.4193569631 | R92: 0.4230695349
A93: % of Owner Occupied Mortgages | B93: 0 | C93: 0 | D93: 0 | E93: 0 | F93: 0 | G93: 0 | H93: 0 | I93: 0 | J93: 0 | K93: 0 | L93: 0 | M93: 0 | N93: 0 | O93: 0 | P93: 0 | Q93: 0 | R93: 0
A94: % of Investment Home Loans - Professional Landlords | B94: 1 | C94: 1 | D94: 1 | E94: 1 | F94: 1 | G94: 1 | H94: 1 | I94: 1 | J94: 1 | K94: 1 | L94: 1 | M94: 1 | N94: 1 | O94: 1 | P94: 1 | Q94: 1 | R94: 1
A95: % of Investment Home Loans - Emerging Professional Landlords | B95: 0 | C95: 0 | D95: 0 | E95: 0 | F95: 0 | G95: 0 | H95: 0 | I95: 0 | J95: 0 | K95: 0 | L95: 0 | M95: 0 | N95: 0 | O95: 0 | P95: 0 | Q95: 0 | R95: 0
A96: Weighted Average Interest Coverage Ratio (calculated at the origination date) | B96: 1.544551499 | C96: 1.543221139 | D96: 1.543172863 | E96: 1.544761166 | F96: 1.550729806 | G96: 1.552873637 | H96: 1.556268014 | I96: 1.558329271 | J96: 1.558273211 | K96: 1.56739885 | L96: 1.571451892 | M96: 1.571401499 | N96: 1.572823781 | O96: 1.561293626 | P96: 1.561583281 | Q96: 1.555132464 | R96: 1.553425958
A97: Number of Properties in Possession | B97: 0 | C97: 0 | D97: 0 | E97: 0 | F97: 0 | G97: 0 | H97: 0 | I97: 0 | J97: 0 | K97: 0 | L97: 0 | M97: 0 | N97: 0 | O97: 0 | P97: 0 | Q97: 0 | R97: 0
A98: Appointment of a Receiver of Rent | B98: 0 | C98: 0 | D98: 0 | E98: 0 | F98: 0 | G98: 0 | H98: 0 | I98: 0 | J98: 0 | K98: 0 | L98: 0 | M98: 0 | N98: 0 | O98: 0 | P98: 0 | Q98: 0 | R98: 0
A99: PML Quarterly Losses | B99: 0 | C99: 0 | D99: 0 | E99: 0 | F99: 0 | G99: 0 | H99: 1 | I99: -1 | J99: 0 | K99: 0 | L99: 0 | M99: 0 | N99: 0 | O99: 0 | P99: 0 | Q99: 0 | R99: 0
A100: Arrears excluding Receiver of Rent and Possession Cases
A101: Performing Loans | B101: 1 | C101: 1 | D101: 1 | E101: 1 | F101: 1 | G101: 1 | H101: 1 | I101: 1 | J101: 1 | K101: 1 | L101: 1 | M101: 1 | N101: 1 | O101: 1 | P101: 1 | Q101: 1 | R101: 1
A102: >1 to 2 months arrears | B102: 0 | C102: 0 | D102: 0 | E102: 0 | F102: 0 | G102: 0 | H102: 0 | I102: 0 | J102: 0 | K102: 0 | L102: 0 | M102: 0 | N102: 0 | O102: 0 | P102: 0 | Q102: 0 | R102: 0
A103: >2 to 3 months arrears | B103: 0 | C103: 0 | D103: 0 | E103: 0 | F103: 0 | G103: 0 | H103: 0 | I103: 0 | J103: 0 | K103: 0 | L103: 0 | M103: 0 | N103: 0 | O103: 0 | P103: 0 | Q103: 0 | R103: 0
A104: >3 months arrears | B104: 0 | C104: 0 | D104: 0 | E104: 0 | F104: 0 | G104: 0 | H104: 0 | I104: 0 | J104: 0 | K104: 0 | L104: 0 | M104: 0 | N104: 0 | O104: 0 | P104: 0 | Q104: 0 | R104: 0
A105: Total | B105: =SUM(B101:B104) -> 1 | C105: 1 | D105: 1 | E105: 1 | F105: 1 | G105: 1 | H105: 1 | I105: 1 | J105: 1 | K105: 1 | L105: 1 | M105: 1 | N105: 1 | O105: 1 | P105: 1 | Q105: 1 | R105: 1
A107: Underlying Assets - Paragon Mortgages 2010 Originated Assets (Emerging Professional) | B107: =+B76 -> 2020-06-30 | C107: 2020-09-30 | D107: =+D76 -> 2020-12-31 | E107: 2021-03-31 | F107: =+F76 -> 2021-06-30 | G107: 2021-09-30 | H107: =+H76 -> 2021-12-31 | I107: 2022-03-31 | J107: =+J76 -> 2022-06-30 | K107: 2022-09-30 | L107: =+L76 -> 2022-12-30 | M107: 2023-03-31 | N107: =+N76 -> 2023-06-30 | O107: 2023-09-29 | P107: =+P76 -> 2023-12-29 | Q107: 2024-03-28 | R107: =+R76 -> 2024-06-28
A108: Weighted Average LTV | B108: 0.716584955 | C108: 0.7168632074 | D108: 0.7158784452 | E108: 0.7157450986 | F108: 0.7145806863 | G108: 0.7082046021 | H108: 0.7078082161 | I108: 0.707512927 | J108: 0.7078647359 | K108: 0.7057676249 | L108: 0.7043714596 | M108: 0.7039238833 | N108: 0.7043572324 | O108: 0.7020893699 | P108: 0.7027460138 | Q108: 0.7015953023 | R108: 0.7037513242
A109: Weighted Average Nationwide Indexed LTV | B109: 0.6310180754 | C109: 0.6057896347 | D109: 0.5930322938 | E109: 0.5894025161 | F109: 0.5576639664 | G109: 0.5459116285 | H109: 0.5300084571 | I109: 0.5179199314 | J109: 0.499110167 | K109: 0.4940310327 | L109: 0.5053561343 | M109: 0.5205503902 | N109: 0.5160604275 | O109: 0.5152128071 | P109: 0.5236074254 | Q109: 0.5214739522 | R109: 0.5232634394
A110: % of Fixed Rate Mortgages (reverting to Term SONIA plus a variable margin) | B110: 0 | C110: 0 | D110: 0 | E110: 0 | F110: 0 | G110: 0 | H110: 0 | I110: 0 | J110: 0 | K110: 0 | L110: 0 | M110: 0 | N110: 0 | O110: 0 | P110: 0 | Q110: 0 | R110: 0
A111: % of Fixed Rate Mortgages (reverting to SVR) | B111: 1 | C111: 1 | D111: 1 | E111: 1 | F111: 0.7800980624 | G111: 0.8202766579 | H111: 0.825774608 | I111: 0.8651174483 | J111: 0.9009143013 | K111: 0.9781270831 | L111: 0.9863845192 | M111: 0.9741000963 | N111: 0.9666395875 | O111: 0.9180533502 | P111: 0.8399377414 | Q111: 0.7860292945 | R111: 0.8122161174
A112: % of Term SONIA Linked Mortgages (reverting to Term SONIA plus a variable margin) | B112: 0 | C112: 0 | D112: 0 | E112: 0 | F112: 0 | G112: 0 | H112: 0 | I112: 0 | J112: 0 | K112: 0 | L112: 0 | M112: 0 | N112: 0 | O112: 0 | P112: 0 | Q112: 0 | R112: 0
A113: % of Term SONIA Linked Mortgages plus a Variable Margin | B113: 0 | C113: 0 | D113: 0 | E113: 0 | F113: 0 | G113: 0 | H113: 0 | I113: 0 | J113: 0 | K113: 0 | L113: 0 | M113: 0 | N113: 0 | O113: 0 | P113: 0 | Q113: 0 | R113: 0
A114: % of Non Reversionary Term SONIA Linked Mortgages | B114: 0 | C114: 0 | D114: 0 | E114: 0 | F114: 0 | G114: 0 | H114: 0 | I114: 0 | J114: 0 | K114: 0 | L114: 0 | M114: 0 | N114: 0 | O114: 0 | P114: 0 | Q114: 0 | R114: 0
A115: % of SVR Mortgages | B115: 0 | C115: 0 | D115: 0 | E115: 0 | F115: 0.2199019376 | G115: 0.1797233421 | H115: 0.174225392 | I115: 0.1348825517 | J115: 0.09908569874 | K115: 0.02187291695 | L115: 0.01361548077 | M115: 0.02589990372 | N115: 0.03336041249 | O115: 0.0819466498 | P115: 0.1600622586 | Q115: 0.2139707055 | R115: 0.1877838826
A116: Weighted Average Loan Size | B116: 176144.2336 | C116: 176010.0662 | D116: 177221.5126 | E116: 175418.6219 | F116: 169660.772 | G116: 170550.548 | H116: 168858.0035 | I116: 162093.0886 | J116: 161748.2541 | K116: 158764.9727 | L116: 160471.4421 | M116: 160228.234 | N116: 165759.7473 | O116: 164436.1844 | P116: 164388.5905 | Q116: 166355.16 | R116: 166414.6707
A117: Weighted Average Interest Rate | B117: 0.03509822007 | C117: 0.03509693528 | D117: 0.03510995333 | E117: 0.03498253753 | F117: 0.03782054505 | G117: 0.03785065065 | H117: 0.03740460623 | I117: 0.0373825947 | J117: 0.03770127761 | K117: 0.0363734171 | L117: 0.03639877207 | M117: 0.03708123193 | N117: 0.04070493052 | O117: 0.04290189752 | P117: 0.04774942772 | Q117: 0.05020364843 | R117: 0.05158337361
A118: Weighted Average Maturity Date (years) | B118: 15.47803436 | C118: 15.2262333 | D118: 14.94402982 | E118: 14.57885531 | F118: 14.33759244 | G118: 14.15848007 | H118: 14.19298275 | I118: 13.57667693 | J118: 13.40877824 | K118: 13.06539783 | L118: 12.79736505 | M118: 12.54425921 | N118: 12.36394379 | O118: 12.11837232 | P118: 11.86716345 | Q118: 11.6185877 | R118: 11.56113004
A119: Weighted Average Seasoning (months) | B119: 64.10798251 | C119: 67.12976784 | D119: 70.16964622 | E119: 73.24992081 | F119: 76.70366068 | G119: 80.16732261 | H119: 83.35908236 | I119: 86.78029899 | J119: 89.9422326 | K119: 93.18516598 | L119: 96.26651386 | M119: 99.2236738 | N119: 102.5239869 | O119: 105.7821159 | P119: 108.7948147 | Q119: 111.8642777 | R119: 115.1690313
A120: % of Interest Only Mortgages (optional switching to repayment) | B120: 0.914064701 | C120: 0.9147605834 | D120: 0.9149887871 | E120: 0.9137553596 | F120: 0.9014951887 | G120: 0.8942774688 | H120: 0.8924642665 | I120: 0.882748894 | J120: 0.8791366672 | K120: 0.8783394282 | L120: 0.8786275487 | M120: 0.8799612048 | N120: 0.8743329324 | O120: 0.8716750261 | P120: 0.8732608981 | Q120: 0.8734763293 | R120: 0.8830825827
A121: % of Repayment Mortgages | B121: 0.08593529904 | C121: 0.08523941661 | D121: 0.08501121286 | E121: 0.08624464041 | F121: 0.09850481131 | G121: 0.1057225312 | H121: 0.1075357335 | I121: 0.117251106 | J121: 0.1208633328 | K121: 0.1216605718 | L121: 0.1213724513 | M121: 0.1200387952 | N121: 0.1256670676 | O121: 0.1283249739 | P121: 0.1267391019 | Q121: 0.1265236707 | R121: 0.1169174173
A122: % of Mortgages in London | B122: 0.2131471619 | C122: 0.2130200233 | D122: 0.2142674219 | E122: 0.1947054351 | F122: 0.1740536954 | G122: 0.1883453376 | H122: 0.165702227 | I122: 0.1821451939 | J122: 0.1893245443 | K122: 0.1922043975 | L122: 0.1934316644 | M122: 0.1930276065 | N122: 0.2028063047 | O122: 0.2086926751 | P122: 0.2080096138 | Q122: 0.2096827984 | R122: 0.2193047124
A123: % of Mortgages in the South East | B123: 0.4005807216 | C123: 0.4006323709 | D123: 0.4034862581 | E123: 0.4135881285 | F123: 0.4452745447 | G123: 0.4469458617 | H123: 0.4596188747 | I123: 0.4279050644 | J123: 0.4225997102 | K123: 0.4301151036 | L123: 0.4339729363 | M123: 0.4341932478 | N123: 0.4457620721 | O123: 0.4291314903 | P123: 0.42927364 | Q123: 0.4338060136 | R123: 0.4258064444
A124: % of Owner Occupied Mortgages | B124: 0 | C124: 0 | D124: 0 | E124: 0 | F124: 0 | G124: 0 | H124: 0 | I124: 0 | J124: 0 | K124: 0 | L124: 0 | M124: 0 | N124: 0 | O124: 0 | P124: 0 | Q124: 0 | R124: 0
A125: % of Investment Home Loans - Professional Landlords | B125: 0 | C125: 0 | D125: 0 | E125: 0 | F125: 0 | G125: 0 | H125: 0 | I125: 0 | J125: 0 | K125: 0 | L125: 0 | M125: 0 | N125: 0 | O125: 0 | P125: 0 | Q125: 0 | R125: 0
A126: % of Investment Home Loans - Emerging Professional Landlords | B126: 1 | C126: 1 | D126: 1 | E126: 1 | F126: 1 | G126: 1 | H126: 1 | I126: 1 | J126: 1 | K126: 1 | L126: 1 | M126: 1 | N126: 1 | O126: 1 | P126: 1 | Q126: 1 | R126: 1
A127: Weighted Average Interest Coverage Ratio (calculated at the origination date) | B127: 1.417041234 | C127: 1.416880143 | D127: 1.414559815 | E127: 1.418416748 | F127: 1.432130156 | G127: 1.44100602 | H127: 1.446197834 | I127: 1.457199031 | J127: 1.46414881 | K127: 1.469615855 | L127: 1.467510614 | M127: 1.467246092 | N127: 1.471652763 | O127: 1.474406306 | P127: 1.474119646 | Q127: 1.468213988 | R127: 1.474210206
A128: Number of Properties in Possession | B128: 0 | C128: 0 | D128: 0 | E128: 0 | F128: 0 | G128: 0 | H128: 0 | I128: 0 | J128: 0 | K128: 0 | L128: 0 | M128: 0 | N128: 0 | O128: 0 | P128: 0 | Q128: 0 | R128: 0
A129: Appointment of a Receiver of Rent | B129: 0 | C129: 0 | D129: 0 | E129: 0 | F129: 0 | G129: 0 | H129: 0 | I129: 0 | J129: 0 | K129: 0 | L129: 0 | M129: 0 | N129: 0 | O129: 0 | P129: 0 | Q129: 0 | R129: 0
A130: MTL Quarterly Losses | B130: 0 | C130: 0 | D130: 0 | E130: 0 | F130: 0 | G130: 0 | H130: 1 | I130: 3 | J130: 0 | K130: -3 | L130: 0 | M130: 0 | N130: 0 | O130: 0 | P130: 0 | Q130: 0 | R130: 0
A131: Arrears excluding Receiver of Rent and Possession Cases
A132: Performing Loans | B132: 1 | C132: 1 | D132: 1 | E132: 1 | F132: 1 | G132: 1 | H132: 1 | I132: 0.9856027537 | J132: 1 | K132: 1 | L132: 1 | M132: 1 | N132: 1 | O132: 1 | P132: 1 | Q132: 1 | R132: 1
A133: >1 to 2 months arrears | B133: 0 | C133: 0 | D133: 0 | E133: 0 | F133: 0 | G133: 0 | H133: 0 | I133: 0.01439724628 | J133: 0 | K133: 0 | L133: 0 | M133: 0 | N133: 0 | O133: 0 | P133: 0 | Q133: 0 | R133: 0
A134: >2 to 3 months arrears | B134: 0 | C134: 0 | D134: 0 | E134: 0 | F134: 0 | G134: 0 | H134: 0 | I134: 0 | J134: 0 | K134: 0 | L134: 0 | M134: 0 | N134: 0 | O134: 0 | P134: 0 | Q134: 0 | R134: 0
A135: >3 months arrears | B135: 0 | C135: 0 | D135: 0 | E135: 0 | F135: 0 | G135: 0 | H135: 0 | I135: 0 | J135: 0 | K135: 0 | L135: 0 | M135: 0 | N135: 0 | O135: 0 | P135: 0 | Q135: 0 | R135: 0
A136: Total | B136: =SUM(B132:B135) -> 1 | C136: 1 | D136: 1 | E136: 1 | F136: 1 | G136: 1 | H136: 1 | I136: 1 | J136: 1 | K136: 1 | L136: 1 | M136: 1 | N136: 1 | O136: 1 | P136: 1 | Q136: 1 | R136: 1
A138: Underlying Assets - Paragon Bank Originated Assets (Professional) | B138: =+B107 -> 2020-06-30 | C138: 2020-09-30 | D138: =+D107 -> 2020-12-31 | E138: 2021-03-31 | F138: =+F107 -> 2021-06-30 | G138: 2021-09-30 | H138: =+H107 -> 2021-12-31 | I138: 2022-03-31 | J138: =+J107 -> 2022-06-30 | K138: 2022-09-30 | L138: =+L107 -> 2022-12-30 | M138: 2023-03-31 | N138: =+N107 -> 2023-06-30 | O138: 2023-09-29 | P138: =+P107 -> 2023-12-29 | Q138: 2024-03-28 | R138: =+R107 -> 2024-06-28
A139: Weighted Average LTV | B139: 0.7322776693 | C139: 0.733023441 | D139: 0.7330092651 | E139: 0.7335599838 | F139: 0.7333080296 | G139: 0.7330026896 | H139: 0.7329514134 | I139: 0.7323323784 | J139: 0.7312564111 | K139: 0.7305080716 | L139: 0.7304524131 | M139: 0.730020283 | N139: 0.7295776618 | O139: 0.7290869755 | P139: 0.7293714286 | Q139: 0.7294247018 | R139: 0.7292064315
A140: Weighted Average Nationwide Indexed LTV | B140: 0.725946511 | C140: 0.6999254105 | D140: 0.6847342878 | E140: 0.6799691695 | F140: 0.6481472195 | G140: 0.6385350725 | H140: 0.6225234183 | I140: 0.6056584055 | J140: 0.5827357716 | K140: 0.5780995655 | L140: 0.593326295 | M140: 0.6102707773 | N140: 0.6029177369 | O140: 0.6024602185 | P140: 0.6112540337 | Q140: 0.6084564222 | R140: 0.6083115136
A141: % of Fixed Rate Mortgages (reverting to Term SONIA plus a variable margin) | B141: 0 | C141: 0 | D141: 0 | E141: 0 | F141: 0 | G141: 0 | H141: 0 | I141: 0 | J141: 0 | K141: 0 | L141: 0 | M141: 0 | N141: 0 | O141: 0 | P141: 0 | Q141: 0 | R141: 0
A142: % of Fixed Rate Mortgages (reverting to SVR) | B142: 1 | C142: 1 | D142: 1 | E142: 1 | F142: 1 | G142: 0.9972229521 | H142: 0.9734192719 | I142: 0.9588298682 | J142: 0.9720977831 | K142: 0.980972265 | L142: 0.9877711818 | M142: 0.9898792889 | N142: 0.9965019 | O142: 0.9880061882 | P142: 0.9538008244 | Q142: 0.9378603239 | R142: 0.9410508601
A143: % of Term SONIA Linked Mortgages (reverting to Term SONIA plus a variable margin) | B143: 0 | C143: 0 | D143: 0 | E143: 0 | F143: 0 | G143: 0 | H143: 0 | I143: 0 | J143: 0 | K143: 0 | L143: 0 | M143: 0 | N143: 0 | O143: 0 | P143: 0 | Q143: 0 | R143: 0
A144: % of Term SONIA Linked Mortgages plus a Variable Margin | B144: 0 | C144: 0 | D144: 0 | E144: 0 | F144: 0 | G144: 0 | H144: 0 | I144: 0 | J144: 0 | K144: 0 | L144: 0 | M144: 0 | N144: 0 | O144: 0 | P144: 0 | Q144: 0 | R144: 0
A145: % of Non Reversionary Term SONIA Linked Mortgages | B145: 0 | C145: 0 | D145: 0 | E145: 0 | F145: 0 | G145: 0 | H145: 0 | I145: 0 | J145: 0 | K145: 0 | L145: 0 | M145: 0 | N145: 0 | O145: 0 | P145: 0 | Q145: 0 | R145: 0
A146: % of SVR Mortgages | B146: 0 | C146: 0 | D146: 0 | E146: 0 | F146: 0 | G146: 0.002777047852 | H146: 0.02658072813 | I146: 0.04117013176 | J146: 0.02790221691 | K146: 0.01902773501 | L146: 0.01222881816 | M146: 0.01012071108 | N146: 0.003498100044 | O146: 0.01199381184 | P146: 0.04619917559 | Q146: 0.06213967612 | R146: 0.05894913995
A147: Weighted Average Loan Size | B147: 185530.3153 | C147: 185105.8088 | D147: 185086.4746 | E147: 184808.9448 | F147: 184690.1067 | G147: 184578.0926 | H147: 185167.8418 | I147: 186683.6617 | J147: 187353.3242 | K147: 187711.6562 | L147: 188467.0427 | M147: 188357.933 | N147: 188485.7466 | O147: 188496.7949 | P147: 188582.482 | Q147: 188841.7782 | R147: 188955.5736
A148: Weighted Average Interest Rate | B148: 0.03573304253 | C148: 0.03574990207 | D148: 0.03575003173 | E148: 0.03575711768 | F148: 0.03576821401 | G148: 0.03591181533 | H148: 0.03671440207 | I148: 0.037085718 | J148: 0.03701775408 | K148: 0.0370103114 | L148: 0.03696063974 | M148: 0.03696631877 | N148: 0.03691452062 | O148: 0.03735707956 | P148: 0.03951660712 | Q148: 0.04057032051 | R148: 0.04047000518
A149: Weighted Average Maturity Date (years) | B149: 20.92956664 | C149: 20.6932172 | D149: 20.45463875 | E149: 20.1955704 | F149: 19.93587824 | G149: 19.69896578 | H149: 19.42375552 | I149: 19.12768086 | J149: 18.88885481 | K149: 18.63754505 | L149: 18.37812371 | M149: 18.12378223 | N149: 17.88335894 | O149: 17.63821405 | P149: 17.40945072 | Q149: 17.20927069 | R149: 17.01795303
A150: Weighted Average Seasoning (months) | B150: 7.871903321 | C150: 10.89433908 | D150: 13.92024159 | E150: 16.87015826 | F150: 19.85720208 | G150: 22.87064591 | H150: 25.88269739 | I150: 28.86419866 | J150: 31.85836349 | K150: 34.88636042 | L150: 37.90989776 | M150: 40.86377288 | N150: 43.85269287 | O150: 46.86346636 | P150: 49.87541973 | Q150: 52.86470974 | R150: 55.859094
A151: % of Interest Only Mortgages (optional switching to repayment) | B151: 0.9511846776 | C151: 0.9515247119 | D151: 0.9506780027 | E151: 0.9508107165 | F151: 0.9508375185 | G151: 0.9511631956 | H151: 0.949658715 | I151: 0.9498209751 | J151: 0.9507367923 | K151: 0.9512496449 | L151: 0.9532585719 | M151: 0.9536663557 | N151: 0.9537444947 | O151: 0.9542218144 | P151: 0.9546876524 | Q151: 0.9560966526 | R151: 0.9566129976
A152: % of Repayment Mortgages | B152: 0.04881532241 | C152: 0.04847528814 | D152: 0.04932199731 | E152: 0.04918928347 | F152: 0.04916248152 | G152: 0.04883680439 | H152: 0.05034128495 | I152: 0.05017902492 | J152: 0.04926320765 | K152: 0.04875035514 | L152: 0.04674142813 | M152: 0.0463336443 | N152: 0.04625550535 | O152: 0.04577818557 | P152: 0.04531234756 | Q152: 0.04390334739 | R152: 0.0433870024
A153: % of Mortgages in London | B153: 0.1464078119 | C153: 0.144140817 | D153: 0.1448222473 | E153: 0.1447444059 | F153: 0.1455275964 | G153: 0.146298318 | H153: 0.148388435 | I153: 0.1524515518 | J153: 0.1535541125 | K153: 0.1545897824 | L153: 0.1553592201 | M153: 0.1561378495 | N153: 0.1569230286 | O153: 0.1571392553 | P153: 0.1589196381 | Q153: 0.1600204637 | R153: 0.1603850041
A154: % of Mortgages in the South East | B154: 0.305619713 | C154: 0.3064888142 | D154: 0.3055856267 | E154: 0.3050271471 | F154: 0.3056526803 | G154: 0.306335567 | H154: 0.3085039316 | I154: 0.3099682338 | J154: 0.3104957687 | K154: 0.3108164999 | L154: 0.3121811522 | M154: 0.3136774828 | N154: 0.3146133856 | O154: 0.3152812886 | P154: 0.3154736231 | Q154: 0.3174896141 | R154: 0.3172479868
A155: % of Owner Occupied Mortgages | B155: 0 | C155: 0 | D155: 0 | E155: 0 | F155: 0 | G155: 0 | H155: 0 | I155: 0 | J155: 0 | K155: 0 | L155: 0 | M155: 0 | N155: 0 | O155: 0 | P155: 0 | Q155: 0 | R155: 0
A156: % of Investment Home Loans - Professional Landlords | B156: 1 | C156: 1 | D156: 1 | E156: 1 | F156: 1 | G156: 1 | H156: 1 | I156: 1 | J156: 1 | K156: 1 | L156: 1 | M156: 1 | N156: 1 | O156: 1 | P156: 1 | Q156: 1 | R156: 1
A157: % of Investment Home Loans - Emerging Professional Landlords | B157: 0 | C157: 0 | D157: 0 | E157: 0 | F157: 0 | G157: 0 | H157: 0 | I157: 0 | J157: 0 | K157: 0 | L157: 0 | M157: 0 | N157: 0 | O157: 0 | P157: 0 | Q157: 0 | R157: 0
A158: Weighted Average Interest Coverage Ratio (calculated at the origination date) | B158: 1.898010206 | C158: 1.899985533 | D158: 1.90082937 | E158: 1.902882238 | F158: 1.903756356 | G158: 1.904135787 | H158: 1.908216323 | I158: 1.914582779 | J158: 1.913791952 | K158: 1.916841299 | L158: 1.91763904 | M158: 1.916180503 | N158: 1.914077873 | O158: 1.915173679 | P158: 1.917218047 | Q158: 1.91918073 | R158: 1.920349596
A159: Number of Properties in Possession | B159: 0 | C159: 0 | D159: 0 | E159: 0 | F159: 0 | G159: 0 | H159: 0 | I159: 0 | J159: 0 | K159: 0 | L159: 0 | M159: 0 | N159: 0 | O159: 0 | P159: 0 | Q159: 0 | R159: 0
A160: Appointment of a Receiver of Rent | B160: 0 | C160: 0 | D160: 0 | E160: 0 | F160: 0 | G160: 0 | H160: 0 | I160: 0 | J160: 0 | K160: 0 | L160: 0 | M160: 2 | N160: 0 | O160: 0 | P160: 0 | Q160: 0 | R160: 0
A161: Paragon Bank Quarterly Losses | B161: 0 | C161: 0 | D161: 0 | E161: 0 | F161: 0 | G161: 0 | H161: 1 | I161: 0 | J161: 0 | K161: 0 | L161: 0 | M161: 0 | N161: 1 | O161: 0 | P161: 0 | Q161: 0 | R161: 0
A162: Arrears excluding Receiver of Rent and Possession Cases
A163: Performing Loans | B163: 1 | C163: 1 | D163: 1 | E163: 0.9994376051 | F163: 0.9987510158 | G163: 1 | H163: 1 | I163: 1 | J163: 0.9985957026 | K163: 0.9985820786 | L163: 0.9975333226 | M163: 0.9978481147 | N163: 1 | O163: 0.9980427843 | P163: 0.998134162 | Q163: 0.9993614946 | R163: 0.9990063477
A164: >1 to 2 months arrears | B164: 0 | C164: 0 | D164: 0 | E164: 0.0005623949428 | F164: 0.001248984165 | G164: 0 | H164: 0 | I164: 0 | J164: 0 | K164: 0 | L164: 0.001032996453 | M164: 0.001039855347 | N164: 0 | O164: 0.001957215662 | P164: 0.001865838047 | Q164: 0.0006385053813 | R164: 0.0003509937334
A165: >2 to 3 months arrears | B165: 0 | C165: 0 | D165: 0 | E165: 0 | F165: 0 | G165: 0 | H165: 0 | I165: 0 | J165: 0 | K165: 0 | L165: 0 | M165: 0 | N165: 0 | O165: 0 | P165: 0 | Q165: 0 | R165: 0
A166: >3 months arrears | B166: 0 | C166: 0 | D166: 0 | E166: 0 | F166: 0 | G166: 0 | H166: 0 | I166: 0 | J166: 0.001404297446 | K166: 0.001417921353 | L166: 0.001433680918 | M166: 0.001112029913 | N166: 0 | O166: 0 | P166: 0 | Q166: 0 | R166: 0.0006426586003
A167: Total | B167: =SUM(B163:B166) -> 1 | C167: 1 | D167: 1 | E167: 1 | F167: 1 | G167: 1 | H167: 1 | I167: =SUM(I163:I166) -> 1 | J167: 1 | K167: 1 | L167: 1 | M167: 1 | N167: 1 | O167: 1 | P167: 1 | Q167: 1 | R167: 1
A169: Underlying Assets - Paragon Bank Originated Assets (Emerging Professional) | B169: =+B138 -> 2020-06-30 | C169: 2020-09-30 | D169: =+D138 -> 2020-12-31 | E169: 2021-03-31 | F169: =+F138 -> 2021-06-30 | G169: 2021-09-30 | H169: =+H138 -> 2021-12-31 | I169: 2022-03-31 | J169: =+J138 -> 2022-06-30 | K169: 2022-09-30 | L169: =+L138 -> 2022-12-30 | M169: 2023-03-31 | N169: =+N138 -> 2023-06-30 | O169: 2023-09-29 | P169: =+P138 -> 2023-12-29 | Q169: 2024-03-28 | R169: =+R138 -> 2024-06-28
A170: Weighted Average LTV | B170: 0.7377360183 | C170: 0.7375445684 | D170: 0.7382457647 | E170: 0.7380773605 | F170: 0.7391032905 | G170: 0.7391696978 | H170: 0.7404792258 | I170: 0.741752419 | J170: 0.7414011449 | K170: 0.7408350436 | L170: 0.7415727515 | M170: 0.7414069884 | N170: 0.7408396909 | O170: 0.7400272017 | P170: 0.7421839482 | Q170: 0.7431261589 | R170: 0.742544505
A171: Weighted Average Nationwide Indexed LTV | B171: 0.732081058 | C171: 0.7038917904 | D171: 0.6901461946 | E171: 0.685048788 | F171: 0.653070246 | G171: 0.6436523923 | H171: 0.628614466 | I171: 0.6140513558 | J171: 0.5910155897 | K171: 0.5856233609 | L171: 0.6015764381 | M171: 0.6199434619 | N171: 0.6127255525 | O171: 0.6114898163 | P171: 0.6227037123 | Q171: 0.6207716668 | R171: 0.620572882
A172: % of Fixed Rate Mortgages (reverting to Term SONIA plus a variable margin) | B172: 0 | C172: 0 | D172: 0 | E172: 0 | F172: 0 | G172: 0 | H172: 0 | I172: 0 | J172: 0 | K172: 0 | L172: 0 | M172: 0 | N172: 0 | O172: 0 | P172: 0 | Q172: 0 | R172: 0
A173: % of Fixed Rate Mortgages (reverting to SVR) | B173: 1 | C173: 1 | D173: 1 | E173: 1 | F173: 1 | G173: 0.9940837474 | H173: 0.9809074593 | I173: 0.9545852504 | J173: 0.9656289774 | K173: 0.9820721536 | L173: 0.9872890964 | M173: 0.9881062135 | N173: 0.9960939776 | O173: 0.9788455564 | P173: 0.9654874296 | Q173: 0.9567842832 | R173: 0.9596036934
A174: % of Term SONIA Linked Mortgages (reverting to Term SONIA plus a variable margin) | B174: 0 | C174: 0 | D174: 0 | E174: 0 | F174: 0 | G174: 0 | H174: 0 | I174: 0 | J174: 0 | K174: 0 | L174: 0 | M174: 0 | N174: 0 | O174: 0 | P174: 0 | Q174: 0 | R174: 0
A175: % of Term SONIA Linked Mortgages plus a Variable Margin | B175: 0 | C175: 0 | D175: 0 | E175: 0 | F175: 0 | G175: 0 | H175: 0 | I175: 0 | J175: 0 | K175: 0 | L175: 0 | M175: 0 | N175: 0 | O175: 0 | P175: 0 | Q175: 0 | R175: 0
A176: % of Non Reversionary Term SONIA Linked Mortgages | B176: 0 | C176: 0 | D176: 0 | E176: 0 | F176: 0 | G176: 0 | H176: 0 | I176: 0 | J176: 0 | K176: 0 | L176: 0 | M176: 0 | N176: 0 | O176: 0 | P176: 0 | Q176: 0 | R176: 0
A177: % of SVR Mortgages | B177: 0 | C177: 0 | D177: 0 | E177: 0 | F177: 0 | G177: 0.005916252562 | H177: 0.01909254073 | I177: 0.04541474964 | J177: 0.03437102263 | K177: 0.01792784637 | L177: 0.0127109036 | M177: 0.01189378646 | N177: 0.003906022449 | O177: 0.02115444357 | P177: 0.03451257039 | Q177: 0.04321571682 | R177: 0.04039630655
A178: Weighted Average Loan Size | B178: 190623.7479 | C178: 190480.5586 | D178: 189734.1815 | E178: 189178.6291 | F178: 188277.6727 | G178: 188367.4268 | H178: 189693.6064 | I178: 190577.2692 | J178: 191404.7343 | K178: 191014.577 | L178: 191543.8476 | M178: 192053.4344 | N178: 192109.8448 | O178: 192134.0716 | P178: 192014.987 | Q178: 192010.7537 | R178: 192293.046
A179: Weighted Average Interest Rate | B179: 0.03566388399 | C179: 0.03565789577 | D179: 0.03566292537 | E179: 0.0356622729 | F179: 0.03567218714 | G179: 0.03589007971 | H179: 0.03658998844 | I179: 0.03708487775 | J179: 0.03705544666 | K179: 0.03692893115 | L179: 0.03697549174 | M179: 0.03696706577 | N179: 0.03697039167 | O179: 0.03756007922 | P179: 0.03905277263 | Q179: 0.03998969877 | R179: 0.03986656296
A180: Weighted Average Maturity Date (years) | B180: 21.89297428 | C180: 21.64394377 | D180: 21.41606631 | E180: 21.18604906 | F180: 20.99627236 | G180: 20.7948647 | H180: 20.54933552 | I180: 20.27523507 | J180: 19.9929295 | K180: 19.77009193 | L180: 19.50512662 | M180: 19.26148545 | N180: 19.00964697 | O180: 18.75345256 | P180: 18.58520469 | Q180: 18.34598093 | R180: 18.11328537
A181: Weighted Average Seasoning (months) | B181: 7.983195347 | C181: 11.00419275 | D181: 14.0353831 | E181: 16.98435028 | F181: 19.97060713 | G181: 22.9863848 | H181: 26.00148877 | I181: 28.99616892 | J181: 31.99619848 | K181: 35.01655434 | L181: 38.04988674 | M181: 41.01175428 | N181: 44.00307901 | O181: 47.01988061 | P181: 50.03616916 | Q181: 53.01864992 | R181: 56.01278329
A182: % of Interest Only Mortgages (optional switching to repayment) | B182: 0.9355505264 | C182: 0.9358431158 | D182: 0.9353089661 | E182: 0.9316705711 | F182: 0.9312054284 | G182: 0.9300569977 | H182: 0.9309163078 | I182: 0.931665831 | J182: 0.9335367371 | K182: 0.9344256975 | L182: 0.9314871164 | M182: 0.9321492049 | N182: 0.9327829499 | O182: 0.9329423384 | P182: 0.9314593628 | Q182: 0.9313370797 | R182: 0.9318669376
A183: % of Repayment Mortgages | B183: 0.06444947356 | C183: 0.06415688417 | D183: 0.06469103389 | E183: 0.06832942894 | F183: 0.06879457158 | G183: 0.06994300235 | H183: 0.06908369223 | I183: 0.06833416899 | J183: 0.06646326294 | K183: 0.06557430253 | L183: 0.06851288365 | M183: 0.06785079513 | N183: 0.06721705013 | O183: 0.06705766161 | P183: 0.06854063718 | Q183: 0.06866292034 | R183: 0.06813306244
A184: % of Mortgages in London | B184: 0.15792713 | C184: 0.157323817 | D184: 0.1561776248 | E184: 0.1561381379 | F184: 0.1522025107 | G184: 0.1540835607 | H184: 0.1541296232 | I184: 0.1576765755 | J184: 0.1595239012 | K184: 0.1590629145 | L184: 0.1619790572 | M184: 0.1631760169 | N184: 0.1642760937 | O184: 0.1645711432 | P184: 0.1659581408 | Q184: 0.1636381125 | R184: 0.1634948064
A185: % of Mortgages in the South East | B185: 0.4131334716 | C185: 0.4144232692 | D185: 0.4131600396 | E185: 0.414165559 | F185: 0.4192664003 | G185: 0.4228135541 | H185: 0.4257599081 | I185: 0.4335641888 | J185: 0.4380102671 | K185: 0.4388471508 | L185: 0.4377884365 | M185: 0.4395241047 | N185: 0.4385939078 | O185: 0.4406832436 | P185: 0.4413944038 | Q185: 0.4446161318 | R185: 0.4445510064
A186: % of Owner Occupied Mortgages | B186: 0 | C186: 0 | D186: 0 | E186: 0 | F186: 0 | G186: 0 | H186: 0 | I186: 0 | J186: 0 | K186: 0 | L186: 0 | M186: 0 | N186: 0 | O186: 0 | P186: 0 | Q186: 0 | R186: 0
A187: % of Investment Home Loans - Professional Landlords | B187: 0 | C187: 0 | D187: 0 | E187: 0 | F187: 0 | G187: 0 | H187: 0 | I187: 0 | J187: 0 | K187: 0 | L187: 0 | M187: 0 | N187: 0 | O187: 0 | P187: 0 | Q187: 0 | R187: 0
A188: % of Investment Home Loans - Emerging Professional Landlords | B188: 1 | C188: 1 | D188: 1 | E188: 1 | F188: 1 | G188: 1 | H188: 1 | I188: 1 | J188: 1 | K188: 1 | L188: 1 | M188: 1 | N188: 1 | O188: 1 | P188: 1 | Q188: 1 | R188: 1
A189: Weighted Average Interest Coverage Ratio (calculated at the origination date) | B189: 1.739124823 | C189: 1.740114253 | D189: 1.740647341 | E189: 1.742541786 | F189: 1.74477999 | G189: 1.745192444 | H189: 1.750687604 | I189: 1.759511921 | J189: 1.762246601 | K189: 1.767282821 | L189: 1.770976204 | M189: 1.769934037 | N189: 1.770870816 | O189: 1.772978787 | P189: 1.76259414 | Q189: 1.762387043 | R189: 1.763601652
A190: Number of Properties in Possession | B190: 0 | C190: 0 | D190: 0 | E190: 0 | F190: 0 | G190: 0 | H190: 0 | I190: 0 | J190: 0 | K190: 0 | L190: 0 | M190: 0 | N190: 0 | O190: 0 | P190: 0 | Q190: 0 | R190: 0
A191: Appointment of a Receiver of Rent | B191: 0 | C191: 0 | D191: 0 | E191: 0 | F191: 0 | G191: 0 | H191: 0 | I191: 0 | J191: 0 | K191: 0 | L191: 0 | M191: 1 | N191: 2 | O191: 3 | P191: 2 | Q191: 2 | R191: 3
A192: Paragon Bank Quarterly Losses | B192: 0 | C192: 0 | D192: 1 | E192: 0 | F192: -1 | G192: 0 | H192: 0 | I192: 0 | J192: 0 | K192: 0 | L192: 0 | M192: 0 | N192: 0 | O192: 1 | P192: -1 | Q192: 1 | R192: 2
A193: Arrears excluding Receiver of Rent and Possession Cases
A194: Performing Loans | B194: 1 | C194: 1 | D194: 0.9996772097 | E194: 0.9976676049 | F194: 0.9976321582 | G194: 0.9992856611 | H194: 1 | I194: 1 | J194: 1 | K194: 0.9996431014 | L194: 0.9984173148 | M194: 0.9960160746 | N194: 0.9990466755 | O194: 0.9939317895 | P194: 0.995904456 | Q194: 0.9947284741 | R194: 0.9966882254
A195: >1 to 2 months arrears | B195: 0 | C195: 0 | D195: 0 | E195: 0.001637533406 | F195: 0.001662419878 | G195: 0 | H195: 0 | I195: 0 | J195: 0 | K195: 0.0003568985664 | L195: 0.001582685193 | M195: 0.003983925366 | N195: 0 | O195: 0.00259593232 | P195: 0.0008632601664 | Q195: 0.004319378333 | R195: 0.003311774633
A196: >2 to 3 months arrears | B196: 0 | C196: 0 | D196: 0 | E196: 0.0006948617405 | F196: 0 | G196: 0 | H196: 0 | I196: 0 | J196: 0 | K196: 0 | L196: 0 | M196: 0 | N196: 0 | O196: 0.000296292765 | P196: 0.003232283792 | Q196: 0.0006508530722 | R196: 0
A197: >3 months arrears | B197: 0 | C197: 0 | D197: 0.0003227902825 | E197: 0 | F197: 0.0007054219266 | G197: 0.0007143388987 | H197: 0 | I197: 0 | J197: 0 | K197: 0 | L197: 0 | M197: 0 | N197: 0.0009533245314 | O197: 0.003175985448 | P197: 0 | Q197: 0.0003012945413 | R197: 0
A198: Total | B198: =SUM(B194:B197) -> 1 | C198: 1 | D198: 1 | E198: 1 | F198: 1 | G198: 1 | H198: 1 | I198: 1 | J198: 1 | K198: 1 | L198: 1 | M198: 1 | N198: 1 | O198: 1 | P198: 1 | Q198: 1 | R198: 1

Sheet Graphs
K2: PARAGON MORTGAGES (NO.27) PLC
